bitfinex/quotes_ETHUSD_20251017
["timestamp","ask_amount","ask_price","bid_price","bid_amount"]
[1760723674182,0.002,3833.4,3833.3,3.95449196]
[1760723674477,0.002,3833.4,3833.3,3.98057914]
[1760723675000,0.002,3833.4,3833.3,3.95449196]
[1760723675586,0.002,3833.4,3833.3,3.48999196]
[1760723675800,0.002,3833.4,3833.2,2.60876725]
[1760723676121,0.002,3833.4,3833.3,2.60871833]
[1760723676488,0.002,3833.4,3833.0,0.52179283]
[1760723676816,0.002,3833.4,3831.9,2.1925]
[1760723676817,0.4639,3833.3,3831.9,2.1925]
[1760723676994,0.002,3833.4,3833.2,2.60872894]
[1760723677186,0.002,3833.4,3833.1,2.60878904]
[1760723677694,0.002,3833.4,3833.3,2.60871833]
[1760723678025,0.002,3833.4,3833.2,2.60873732]
[1760723678521,0.002,3833.4,3832.3,0.4645]
[1760723678732,0.4639,3833.3,3832.3,2.60939905]
[1760723678922,0.002,3833.4,3831.7,0.4645]
[1760723679106,3.07274102,3833.2,3832.3,2.60933418]
[1760723679443,2.6088551,3833.1,3832.3,2.60933418]
[1760723679726,0.5681478,3833.0,3832.3,2.60933418]
[1760723679888,0.2153,3832.9,3832.3,2.60933418]
[1760723680083,0.4639,3832.8,3832.2,2.60944893]
[1760723680294,0.4639,3832.8,3832.3,2.60939105]
[1760723680493,0.4639,3832.7,3831.3,0.001]
[1760723681319,2.60927682,3832.5,3831.4,2.610012]
[1760723681521,2.9165945,3832.5,3831.4,2.610012]
[1760723681686,2.9165945,3832.5,3831.6,2.60985641]
[1760723681886,2.60933452,3832.4,3831.6,2.60985641]
[1760723682106,0.1304,3832.1,3831.6,2.60985641]
[1760723682310,0.5943,3832.1,3831.7,2.60979084]
[1760723682513,0.2153,3831.8,3831.4,2.60997981]
[1760723682728,2.95546887,3831.8,3831.3,0.001]
[1760723683025,0.75944689,3831.7,3831.3,0.001]
[1760723683262,11.556254,3831.4,3831.3,0.001]
[1760723683556,6.51828452,3831.0,3830.9,0.001]
[1760723683775,1.728,3831.0,3830.9,0.001]
[1760723684266,0.04550635,3831.2,3830.9,0.001]
[1760723684834,0.4639,3831.1,3830.9,0.001]
[1760723685234,0.04550635,3831.2,3830.9,0.001]
[1760723685530,4.80218452,3831.0,3830.9,0.001]
[1760723685964,18.26678452,3831.0,3830.9,0.001]
[1760723686262,7.24606852,3831.0,3830.9,0.001]
[1760723686464,12.90004552,3831.0,3830.9,0.00099932]
[1760723686629,12.77035252,3831.0,3830.9,0.00099932]
[1760723686970,11.63587105,3831.0,3830.9,0.00099932]
[1760723687458,10.42457305,3831.0,3830.9,0.00099932]
[1760723687655,14.13785205,3831.0,3830.9,0.00099932]
[1760723687955,13.39159185,3831.0,3830.9,0.00099932]
[1760723688255,10.86852185,3831.0,3830.9,0.00099932]
[1760723688741,16.11412585,3831.0,3830.9,0.00099932]
[1760723688940,13.48912385,3831.0,3830.9,0.00099932]
[1760723689560,13.53463947,3831.0,3830.9,0.00099932]
[1760723689724,19.73192147,3831.0,3830.9,0.00099932]
[1760723690123,2.61089788,3830.1,3829.6,0.001]
[1760723690373,8.71816988,3830.1,3829.6,0.001]
[1760723690677,7.47088488,3830.1,3829.6,0.001]
[1760723690890,5.2579557,3830.1,3829.6,0.001]
[1760723691062,8.0756367,3830.1,3829.6,0.001]
[1760723691244,5.56527338,3830.1,3829.6,0.001]
[1760723691445,8.86027338,3830.1,3829.6,0.001]
[1760723691652,15.30774238,3830.1,3829.6,0.001]
[1760723691849,33.75828493,3830.1,3829.6,0.001]
[1760723692095,28.50327993,3830.1,3829.6,0.001]
[1760723692449,5.56527338,3830.1,3829.6,0.001]
[1760723692666,11.98683938,3830.1,3829.6,0.001]
[1760723692876,11.09283938,3830.1,3829.6,0.001]
[1760723693188,7.71065838,3830.1,3829.6,0.001]
[1760723693551,12.72892358,3829.7,3829.6,0.001]
[1760723693899,4.60473057,3829.7,3829.6,0.001]
[1760723694179,4.65025764,3829.7,3829.6,0.001]
[1760723694378,9.22590964,3829.7,3829.6,0.001]
[1760723694581,20.12850164,3829.7,3829.6,0.001]
[1760723694773,13.71258064,3829.7,3829.6,0.001]
[1760723695148,8.35167464,3829.7,3829.6,0.001]
[1760723695354,7.63290751,3829.7,3829.6,0.001]
[1760723695654,9.52297351,3829.7,3829.6,0.001]
[1760723695879,8.53329251,3829.7,3829.6,0.001]
[1760723696082,10.13429251,3829.7,3829.6,0.001]
[1760723696475,8.56093551,3829.7,3829.6,0.001]
[1760723696670,9.02621651,3829.7,3829.6,0.001]
[1760723696853,8.98068944,3829.7,3829.6,0.001]
[1760723697055,2.40325286,3829.7,3829.6,0.001]
[1760723697362,13.80612644,3829.7,3829.6,0.001]
[1760723697557,5.47202344,3829.7,3829.6,0.001]
[1760723697881,5.01442344,3829.7,3829.6,0.001]
[1760723698086,14.65387144,3829.7,3829.6,0.001]
[1760723698292,8.77867344,3829.7,3829.6,0.001]
[1760723699300,15.13641844,3829.7,3829.6,0.001]
[1760723699781,11.49676744,3829.7,3829.6,0.001]
[1760723700095,10.7177445,3829.7,3829.6,0.001]
[1760723700264,8.6186105,3829.7,3829.6,0.001]
[1760723700464,5.0599595,3829.7,3829.6,0.001]
[1760723700702,4.79439951,3829.7,3829.6,0.001]
[1760723700906,7.08394951,3829.7,3829.6,0.001]
[1760723701207,4.79439951,3829.7,3829.6,0.001]
[1760723701782,7.41456951,3829.7,3829.6,0.001]
[1760723702186,4.79439951,3829.7,3829.6,0.001]
[1760723702699,4.38470664,3829.7,3829.6,0.001]
[1760723703402,1.77353606,3829.7,3829.6,0.001]
[1760723703798,0.04553606,3829.7,3829.6,0.001]
[1760723703987,0.2327,3830.8,3829.6,0.4522]
[1760723704305,0.40961281,3830.0,3829.6,0.4522]
[1760723704468,2.61094414,3830.1,3829.6,0.001]
[1760723704668,2.61097142,3830.0,3829.6,0.001]
[1760723704888,0.04551976,3830.4,3829.6,0.001]
[1760723704889,2.65621528,3830.4,3829.7,0.4467]
[1760723705099,0.04551976,3830.4,3829.7,0.4467]
[1760723705373,0.1304,3829.7,3829.6,0.001]
[1760723705572,1.728,3830.3,3829.6,2.61223877]
[1760723705785,0.04551976,3830.4,3830.2,0.174]
[1760723705987,0.1304,3830.2,3829.6,0.52335939]
[1760723706214,0.1304,3829.9,3829.6,0.4477]
[1760723706397,1.962,3830.9,3829.6,0.001]
[1760723706574,2.61110026,3829.9,3829.6,0.001]
[1760723706775,2.61106933,3829.9,3829.6,0.001]
[1760723707073,0.4277,3830.6,3829.6,0.001]
[1760723707280,0.4277,3830.6,3829.6,0.4477]
[1760723707478,0.4096046,3830.6,3829.6,0.4477]
[1760723707703,1.728,3830.4,3829.6,0.4477]
[1760723707911,0.4096046,3830.6,3829.7,0.30590004]
[1760723708110,2.61089788,3830.1,3829.6,0.4477]
[1760723708313,0.4096046,3830.6,3829.6,0.4477]
[1760723708503,2.61092789,3830.1,3829.6,0.4477]
[1760723709105,2.61103187,3830.0,3829.6,0.001]
[1760723709305,2.61104867,3829.9,3829.6,0.001]
[1760723709498,2.61101213,3830.0,3829.6,0.001]
[1760723710017,2.61117058,3829.7,3829.6,0.001]
[1760723710429,0.47936129,3830.4,3829.6,0.001]
[1760723710587,0.04552226,3830.2,3829.6,0.001]
[1760723710787,1.728,3830.0,3829.6,0.001]
[1760723711023,2.6110847,3829.9,3829.6,0.001]
[1760723711206,0.04552226,3830.2,3829.6,0.001]
[1760723711526,2.61112943,3829.8,3829.6,0.001]
[1760723711720,0.04552226,3830.2,3829.6,0.001]
[1760723712089,2.61110366,3829.8,3829.6,0.001]
[1760723712288,2.61105272,3829.9,3829.6,0.001]
[1760723712484,2.61103423,3829.9,3829.6,0.001]
[1760723712688,2.61112121,3829.8,3829.6,0.001]
[1760723712886,2.61117058,3829.7,3829.6,0.001]
[1760723713315,3.03887058,3829.7,3829.6,0.001]
[1760723713521,18.36674458,3829.7,3829.6,0.001]
[1760723713735,4.76687058,3829.7,3829.6,0.001]
[1760723713914,10.15398013,3829.7,3829.6,0.001]
[1760723714095,12.78645966,3829.7,3829.6,0.001]
[1760723714495,11.98902966,3829.7,3829.6,0.001]
[1760723714696,14.95466666,3829.7,3829.6,0.001]
[1760723714905,15.36440287,3829.7,3829.6,0.001]
[1760723715226,15.36440287,3829.7,3829.2,0.001]
[1760723715227,26.58973534,3829.3,3829.2,0.001]
[1760723715430,42.65509745,3829.3,3829.2,0.001]
[1760723715597,43.08279745,3829.3,3829.2,0.001]
[1760723715926,8.27030317,3829.3,3829.2,0.001]
[1760723716125,9.48137117,3829.3,3829.2,0.001]
[1760723716326,9.89115698,3829.3,3829.2,0.001]
[1760723716695,5.63214398,3829.3,3829.2,0.001]
[1760723718333,8.52942898,3829.3,3829.2,0.001]
[1760723718695,8.98452898,3829.3,3829.2,0.001]
[1760723718899,14.20242998,3829.3,3829.2,0.001]
[1760723719102,9.74072998,3829.3,3829.2,0.001]
[1760723719550,5.63214398,3829.3,3829.2,0.001]
[1760723719833,10.84373898,3829.3,3829.2,0.001]
[1760723720035,10.86639698,3829.3,3829.2,0.001]
[1760723720233,6.05984398,3829.3,3829.2,0.001]
[1760723720441,5.63214398,3829.3,3829.2,0.001]
[1760723720604,13.67869998,3829.3,3829.2,0.001]
[1760723720835,5.63214398,3829.3,3829.2,0.001]
[1760723721180,22.00824298,3829.3,3829.2,0.001]
[1760723721345,20.72574298,3829.3,3829.2,0.001]
[1760723721963,16.60124898,3829.3,3829.2,0.001]
[1760723722165,18.09298898,3829.3,3829.2,0.001]
[1760723722366,9.46705198,3829.3,3829.2,0.001]
[1760723723134,6.05984398,3829.3,3829.2,0.001]
[1760723723348,17.97996198,3829.3,3829.2,0.001]
[1760723723538,10.86624498,3829.3,3829.2,0.001]
[1760723724284,11.74596398,3829.3,3829.2,0.001]
[1760723724485,13.22290998,3829.3,3829.2,0.001]
[1760723724991,13.22290998,3829.3,3828.1,0.1131]
[1760723724992,2.61258157,3827.7,3826.0,0.1141]
[1760723725140,2.61280798,3827.3,3826.8,0.4362]
[1760723725540,2.61267145,3827.5,3826.8,0.4362]
[1760723725541,2.6130128,3827.0,3826.8,0.4362]
[1760723726275,0.07622381,3827.2,3826.0,0.1141]
[1760723726445,1.728,3827.0,3826.0,0.1141]
[1760723726770,2.61314936,3826.8,3826.0,0.1141]
[1760723726973,0.35322238,3826.9,3826.0,0.1141]
[1760723726974,2.613409,3826.5,3826.0,0.1141]
[1760723727178,2.613409,3826.5,3826.1,0.4362]
[1760723727348,2.61315492,3826.8,3826.2,0.4362]
[1760723727550,0.4099613,3827.0,3826.2,0.4362]
[1760723727751,2.6129456,3827.1,3826.2,0.4362]
[1760723727971,2.61333542,3826.6,3826.0,0.1141]
[1760723728152,2.61362745,3826.1,3826.0,0.1141]
[1760723728347,2.61347309,3826.4,3826.0,0.1141]
[1760723728546,2.61347309,3826.4,3826.0,0.5503]
[1760723729081,2.61351139,3826.3,3826.0,0.5503]
[1760723729469,2.61351139,3826.3,3826.1,0.4362]
[1760723729677,2.61362262,3826.2,3825.4,2.61409758]
[1760723729988,2.61355914,3826.2,3826.1,0.1141]
[1760723730955,2.65884716,3826.6,3826.1,0.1141]
[1760723731290,2.61350708,3826.3,3826.1,0.1141]
[1760723731494,0.0455543,3826.6,3826.1,0.1141]
[1760723731693,0.0455543,3826.6,3826.2,0.4362]
[1760723732065,1.728,3826.4,3826.2,0.4362]
[1760723732407,1.7735543,3826.6,3826.2,0.4362]
[1760723732610,0.67899355,3827.1,3826.6,2.61324266]
[1760723732611,0.40994744,3827.1,3826.6,2.61324266]
[1760723732766,0.40994744,3827.1,3826.7,0.4362]
[1760723732962,0.04554718,3827.5,3826.8,0.4362]
[1760723733469,2.65828682,3827.5,3826.8,3.04929541]
[1760723733667,2.61279911,3827.4,3826.8,0.4362]
[1760723733865,2.65827394,3827.5,3826.8,3.04931992]
[1760723734061,2.65827394,3827.5,3827.4,0.2135]
[1760723734062,1.77354718,3827.5,3827.4,0.2135]
[1760723734266,0.4098796,3827.7,3827.4,3.26243415]
[1760723734462,1.33671483,3829.3,3827.4,3.26243415]
[1760723734463,1.77354088,3828.3,3827.7,2.61251965]
[1760723734693,1.77354088,3828.3,3828.2,0.1435]
[1760723734694,0.04554088,3828.3,3828.2,0.1435]
[1760723735369,0.4097794,3829.0,3828.2,0.5797]
[1760723735572,2.61104605,3829.9,3829.0,2.611604]
[1760723735820,0.08019181,3830.0,3828.3,0.75539436]
[1760723735996,2.61324676,3829.6,3828.9,2.6117093]
[1760723736166,0.4538,3829.5,3828.2,0.1435]
[1760723736367,2.61192033,3828.7,3828.2,0.1435]
[1760723736567,0.4538,3829.5,3828.3,0.4362]
[1760723736772,0.1304,3828.5,3828.3,0.4362]
[1760723737001,0.1304,3828.5,3828.4,3.04825725]
[1760723737186,0.002,3829.6,3829.1,2.61151787]
[1760723737498,0.002,3829.6,3829.3,2.61143404]
[1760723737696,0.002,3829.6,3829.0,0.4362]
[1760723737865,0.002,3829.6,3829.4,2.61133602]
[1760723738066,0.002,3829.6,3829.4,0.5659044]
[1760723738276,0.002,3829.6,3829.5,3.04750695]
[1760723739645,0.002,3829.6,3828.4,2.61205725]
[1760723739848,0.002,3829.6,3828.3,0.31918887]
[1760723740140,2.61325276,3829.6,3828.8,2.61178437]
[1760723740302,2.61131509,3829.5,3828.8,2.61178437]
[1760723740837,12.85959995,3829.5,3826.1,2.80404352]
[1760723741037,12.85959995,3829.5,3827.7,3.04871457]
[1760723741038,2.61202339,3828.5,3827.7,3.04871457]
[1760723741203,0.2179,3828.9,3827.8,0.30487146]
[1760723741402,2.61198297,3828.6,3827.7,0.4362]
[1760723741599,2.61186532,3828.7,3827.9,2.61235017]
[1760723742143,2.61192431,3828.6,3827.7,0.4362]
[1760723742339,0.40974558,3829.1,3827.8,0.02612466]
[1760723742542,2.61164948,3829.0,3827.4,2.8261941]
[1760723742720,2.61173547,3828.9,3827.9,3.04854142]
[1760723742902,2.61190762,3828.7,3827.9,3.04854142]
[1760723743554,1.728,3829.0,3828.1,2.61224949]
[1760723743758,2.61180374,3828.8,3828.1,2.61224949]
[1760723744075,2.61172275,3828.9,3827.9,3.0485851]
[1760723744273,4.74933157,3829.1,3828.1,2.61220951]
[1760723744476,2.61178974,3828.8,3828.0,2.61227583]
[1760723745237,2.61180912,3828.8,3827.9,0.74105851]
[1760723745556,2.61180032,3828.8,3828.0,2.61227179]
[1760723745756,2.61179792,3828.8,3828.1,2.61224623]
[1760723745945,1.728,3828.9,3828.1,2.61220451]
[1760723745946,2.61177408,3828.9,3828.1,2.61220451]
[1760723746142,2.61179915,3828.8,3828.0,2.61231565]
[1760723746471,2.61185761,3828.7,3828.0,2.61231565]
[1760723747265,0.1304,3828.3,3827.9,3.35340966]
[1760723747469,0.1304,3828.3,3828.0,2.61231947]
[1760723747870,0.1304,3828.3,3828.1,2.61225743]
[1760723748164,0.1304,3828.3,3828.2,2.61219372]
[1760723748372,0.1304,3828.7,3828.2,3.04837534]
[1760723748585,0.1304,3828.7,3828.4,2.61204713]
[1760723749070,0.1304,3828.7,3828.4,0.4362]
[1760723749238,0.1304,3828.7,3828.0,2.7427006]
[1760723749604,0.1304,3828.7,3828.5,2.61193896]
[1760723749748,0.1304,3828.7,3828.6,2.6119208]
[1760723750068,1.00341818,3831.0,3828.6,0.4362]
[1760723750069,0.04553043,3829.1,3828.6,0.4362]
[1760723750270,0.1304,3829.5,3828.6,0.5666]
[1760723750469,2.61062378,3830.6,3829.5,2.61130695]
[1760723750669,0.4538,3830.7,3829.5,2.61130695]
[1760723750670,0.1324,3830.0,3829.5,2.61130695]
[1760723751076,0.1324,3830.0,3829.3,0.1304]
[1760723751240,0.1324,3830.0,3829.5,2.61130695]
[1760723751640,0.1324,3830.0,3829.5,3.06732001]
[1760723751860,0.002,3830.0,3828.7,0.31785464]
[1760723752175,2.61219372,3828.2,3828.1,0.001]
[1760723752481,0.2191,3828.8,3828.1,0.001]
[1760723752686,0.04553418,3828.6,3828.1,0.2277]
[1760723752841,0.04553418,3828.6,3828.1,0.001]
[1760723753198,2.61246669,3827.8,3827.7,0.001]
[1760723753343,2.61253494,3827.7,3826.0,0.001]
[1760723753544,1.728,3827.3,3826.0,0.001]
[1760723753774,2.201,3827.7,3826.1,0.1151]
[1760723753947,0.04554955,3827.6,3826.6,2.61322558]
[1760723754149,2.61267155,3827.5,3826.7,2.87452095]
[1760723754350,0.2191,3828.3,3827.5,2.61262729]
[1760723754600,0.2191,3828.3,3827.4,0.1445]
[1760723754791,2.61232005,3828.1,3827.4,0.1445]
[1760723754992,0.26464059,3828.3,3827.2,0.1445]
[1760723755195,0.473,3828.2,3827.2,0.1445]
[1760723755402,2.61235178,3828.0,3827.2,2.75734595]
[1760723755608,0.2191,3827.9,3827.2,0.68154183]
[1760723755762,2.61280275,3827.4,3826.1,0.1151]
[1760723755960,0.2191,3828.3,3826.1,0.1151]
[1760723756277,0.2191,3828.3,3826.2,0.4299]
[1760723756278,0.04554426,3827.9,3826.2,0.4299]
[1760723756478,0.04554426,3827.9,3826.3,2.61349083]
[1760723756677,0.2191,3827.8,3826.4,0.74574908]
[1760723757061,0.04554426,3827.9,3827.2,2.6128167]
[1760723757257,0.04554426,3827.9,3827.3,0.1445]
[1760723757496,1.728,3828.2,3827.4,2.61267246]
[1760723757698,1.9471,3828.3,3827.3,2.75729179]
[1760723757882,1.728,3828.1,3827.3,0.1445]
[1760723758065,0.6921,3828.3,3827.2,0.1445]
[1760723758262,2.61235836,3828.0,3827.2,0.1445]
[1760723758480,2.61234588,3828.0,3827.3,2.61277756]
[1760723758681,4.34026477,3828.1,3827.3,2.61280798]
[1760723758884,2.61243063,3827.9,3827.2,0.1445]
[1760723759086,2.61226195,3828.1,3827.2,0.1445]
[1760723759262,0.473,3828.2,3826.4,2.61336984]
[1760723759263,0.6921,3827.8,3826.4,2.61336984]
[1760723759472,0.473,3827.7,3826.0,0.4309]
[1760723759907,2.61305264,3827.0,3826.0,3.04458764]
[1760723760112,3.08554866,3827.7,3826.0,3.04458764]
[1760723760113,0.473,3826.9,3826.0,0.001]
[1760723760410,2.61326685,3826.7,3826.0,0.001]
[1760723760589,2.61349014,3826.4,3826.0,0.001]
[1760723760774,0.473,3827.5,3826.1,0.1151]
[1760723760977,0.40996806,3827.0,3826.1,0.1151]
[1760723761163,0.40996806,3827.0,3826.0,0.001]
[1760723761164,2.61360828,3826.2,3826.0,0.001]
[1760723761373,0.473,3826.9,3826.0,0.001]
[1760723761593,0.473,3826.9,3826.1,0.1151]
[1760723761594,1.98909681,3826.8,3826.1,0.1151]
[1760723761792,2.65871924,3826.8,3826.1,2.72872716]
[1760723761978,0.1304,3826.2,3826.1,2.72871893]
[1760723762515,1.728,3827.3,3826.1,0.5615]
[1760723762715,1.728,3827.5,3826.8,2.61309854]
[1760723762936,0.04554671,3827.5,3826.6,2.61327435]
[1760723763070,0.04554671,3827.5,3826.2,0.4464]
[1760723763071,0.04554671,3827.5,3826.7,0.28745961]
[1760723763401,0.40988797,3828.0,3827.4,0.1445]
[1760723763402,0.45542848,3828.0,3827.4,0.1445]
[1760723763583,0.45542848,3828.0,3827.5,2.61261281]
[1760723763584,0.1304,3827.6,3827.5,2.61261281]
[1760723763993,0.40980357,3828.7,3827.9,2.61239844]
[1760723764196,0.04553795,3828.5,3827.4,0.1445]
[1760723764417,0.04553795,3828.5,3828.1,2.6122201]
[1760723764583,0.04553795,3828.5,3828.2,2.61218835]
[1760723764800,0.1304,3828.2,3828.1,0.2267]
[1760723765002,2.61226195,3828.1,3827.5,0.1304]
[1760723765188,0.3183062,3828.0,3827.1,0.1445]
[1760723765388,0.04553795,3828.5,3827.2,2.63900501]
[1760723765611,0.04553795,3828.5,3827.3,0.4464]
[1760723765819,0.04553795,3828.5,3827.4,0.02612739]
[1760723766012,0.62885153,3828.8,3828.1,2.61224709]
[1760723766203,0.62885153,3828.8,3828.0,2.61232466]
[1760723766395,2.8308943,3828.8,3828.0,2.61232466]
[1760723766590,2.61186643,3828.7,3828.0,2.61232466]
[1760723767019,2.61186643,3828.7,3827.9,2.61238539]
[1760723767201,2.6119854,3828.6,3827.8,2.61243878]
[1760723767403,0.4404,3828.5,3827.1,0.1445]
[1760723767719,2.61212957,3828.3,3827.5,2.61261851]
[1760723767909,2.61212957,3828.3,3828.1,0.001]
[1760723768226,2.61193744,3828.6,3828.1,0.001]
[1760723768592,0.2191,3828.8,3828.1,0.2277]
[1760723768799,0.40977442,3829.0,3828.1,0.2277]
[1760723768997,0.4404,3829.5,3828.5,2.61195404]
[1760723768998,3.05171576,3829.5,3828.5,2.61195404]
[1760723769323,2.6115891,3829.1,3828.1,2.83993609]
[1760723769525,0.4404,3829.1,3828.1,0.2277]
[1760723769703,0.2238,3828.2,3828.1,0.001]
[1760723770108,0.6642,3828.2,3828.1,0.001]
[1760723770321,3.27639372,3828.2,3828.1,0.001]
[1760723770532,0.6642,3828.2,3828.1,0.001]
[1760723770832,3.27639372,3828.2,3828.1,0.001]
[1760723771598,0.2238,3828.2,3828.1,0.001]
[1760723771797,3.27639372,3828.2,3828.1,0.001]
[1760723772012,0.6642,3828.2,3828.1,0.001]
[1760723772219,3.27639372,3828.2,3828.1,0.001]
[1760723772535,4.34046669,3827.8,3827.3,0.001]
[1760723772711,4.56453971,3827.4,3827.3,0.001]
[1760723772910,0.4404,3828.1,3827.3,0.001]
[1760723773109,3.05268482,3828.1,3827.3,0.001]
[1760723773310,0.04554695,3828.2,3827.3,0.001]
[1760723773732,0.04554695,3828.2,3827.4,2.61273971]
[1760723773931,0.04554695,3828.2,3827.3,0.001]
[1760723773932,2.61233118,3828.0,3827.3,0.001]
[1760723774106,0.30982781,3828.0,3827.3,0.001]
[1760723774299,0.04554695,3828.2,3827.3,0.001]
[1760723774300,2.61245037,3827.9,3827.3,0.001]
[1760723774507,2.61254146,3827.7,3827.3,0.001]
[1760723774910,0.4404,3827.6,3827.3,0.001]
[1760723775134,0.2238,3827.9,3827.3,0.001]
[1760723775313,4.34027538,3828.1,3827.4,2.61273651]
[1760723775636,2.69257139,3828.1,3827.3,0.001]
[1760723775837,0.4404,3828.0,3826.6,0.4464]
[1760723776037,0.4404,3828.0,3826.0,0.001]
[1760723776038,2.61362745,3826.1,3826.0,0.001]
[1760723776242,2.61362745,3826.1,3825.6,0.001]
[1760723776243,9.63431372,3825.7,3825.6,0.001]
[1760723776426,8.48083318,3825.7,3825.6,0.001]
[1760723776737,3.02983283,3825.7,3825.6,0.001]
[1760723776903,0.07702137,3825.7,3825.6,0.001]
[1760723777102,3.05430072,3825.7,3825.6,0.001]
[1760723777299,0.4404,3825.7,3825.6,0.001]
[1760723777503,0.2238,3825.9,3825.6,0.001]
[1760723777825,0.41001221,3826.2,3825.6,0.001]
[1760723778214,0.4404,3826.6,3825.6,0.001]
[1760723778637,2.61353384,3826.3,3825.6,0.001]
[1760723778825,0.2238,3826.7,3825.6,0.001]
[1760723779027,2.61335631,3826.5,3825.6,0.001]
[1760723779229,2.83770072,3825.7,3825.6,0.001]
[1760723779541,3.05388558,3826.4,3825.6,0.001]
[1760723779735,0.2238,3825.8,3825.6,0.001]
[1760723779924,1.04011057,3826.5,3825.6,0.001]
[1760723780238,0.2238,3825.8,3825.6,0.001]
[1760723780414,2.61343655,3826.4,3825.6,0.001]
[1760723780615,0.4404,3826.4,3825.6,0.001]
[1760723780818,0.2238,3825.9,3825.6,0.001]
[1760723781601,0.04556352,3826.3,3825.8,2.61376887]
[1760723781803,0.41003823,3826.5,3826.2,0.1171]
[1760723782007,0.41003823,3826.5,3825.6,0.001]
[1760723782008,0.4421,3826.4,3825.6,0.001]
[1760723782617,0.04555892,3826.8,3825.6,0.001]
[1760723783209,0.04555892,3826.8,3825.8,2.6137704]
[1760723783438,0.04555892,3826.8,3825.8,2.6137814]
[1760723783608,2.65871158,3826.8,3825.9,0.52287494]
[1760723784015,0.04555892,3826.8,3825.9,0.52287494]
[1760723784241,2.61330051,3826.6,3825.7,2.61383854]
[1760723784440,2.61330051,3826.6,3825.8,2.61379451]
[1760723784812,0.4421,3826.7,3825.9,2.61376166]
[1760723785050,0.4421,3826.7,3825.6,0.001]
[1760723785238,0.2239,3825.7,3825.6,0.001]
[1760723785554,0.04555892,3826.8,3825.6,0.001]
[1760723785712,1.728,3826.4,3826.0,2.61367717]
[1760723786050,0.1304,3826.0,3825.6,0.001]
[1760723786209,0.1304,3826.5,3826.4,2.61342253]
[1760723786406,0.1304,3826.5,3826.3,0.1171]
[1760723786655,0.1304,3826.5,3825.9,0.1304]
[1760723786854,0.2239,3826.8,3825.8,0.1171]
[1760723786855,0.002,3826.7,3825.8,0.1171]
[1760723787015,0.002,3826.7,3825.6,0.001]
[1760723787016,0.2239,3825.9,3825.6,0.001]
[1760723787213,2.61390072,3825.7,3825.6,0.001]
[1760723787745,0.4421,3825.8,3825.6,0.001]
[1760723787746,1.728,3825.8,3825.6,0.001]
[1760723788046,2.61362917,3826.1,3825.6,0.001]
[1760723788047,1.728,3826.0,3825.6,0.001]
[1760723788209,1.728,3825.8,3825.6,0.001]
[1760723788410,0.666,3825.9,3825.6,0.001]
[1760723789023,1.728,3826.1,3825.6,0.001]
[1760723789218,0.45560709,3826.4,3825.7,2.61390072]
[1760723789421,0.1304,3826.0,3825.9,2.61370436]
[1760723789615,0.002,3827.1,3826.3,2.61347977]
[1760723789946,0.1304,3826.4,3826.3,2.61349083]
[1760723790152,0.002,3827.1,3826.6,2.61328594]
[1760723790451,0.002,3827.1,3826.6,3.4417209]
[1760723790745,0.1304,3827.0,3826.6,2.61328594]
[1760723791245,0.1304,3827.0,3826.6,3.05748594]
[1760723791928,0.1304,3827.0,3826.6,2.61328594]
[1760723792645,0.1304,3827.0,3826.6,3.05748594]
[1760723793229,0.1304,3827.0,3826.6,2.61328594]
[1760723793424,0.1304,3827.0,3826.6,3.15160911]
[1760723793624,0.1304,3827.0,3826.6,3.17774196]
[1760723793945,0.1304,3827.0,3826.6,3.15160911]
[1760723794149,0.002,3827.1,3826.6,3.59580911]
[1760723794442,0.002,3827.1,3826.6,3.72620911]
[1760723794645,0.002,3827.1,3826.6,3.28200911]
[1760723794856,0.002,3827.1,3825.6,1.729]
[1760723795151,0.2239,3826.8,3825.9,0.1171]
[1760723795336,0.2239,3826.8,3826.3,2.61342684]
[1760723795834,0.2239,3826.8,3826.0,2.61369576]
[1760723796146,2.6135436,3826.3,3825.6,2.61495794]
[1760723796317,0.56690595,3826.3,3825.6,0.001]
[1760723796520,0.2239,3826.8,3826.2,0.1171]
[1760723796820,1.728,3826.4,3825.9,0.1171]
[1760723797039,1.728,3826.5,3825.9,2.73084288]
[1760723797242,1.728,3826.6,3825.9,0.1171]
[1760723797426,0.002,3826.7,3825.9,0.1171]
[1760723797627,0.002,3826.7,3826.6,2.61328594]
[1760723798031,0.002,3826.7,3825.9,0.87891592]
[1760723798231,0.4421,3826.6,3825.6,0.001]
[1760723798431,2.61356813,3826.2,3825.6,0.001]
[1760723798853,2.61364268,3826.1,3825.6,0.001]
[1760723799049,1.728,3826.6,3825.6,0.001]
[1760723799249,2.61342525,3826.4,3825.6,0.001]
[1760723799454,3.05577976,3826.1,3825.6,0.001]
[1760723799917,3.05733612,3826.7,3825.6,0.02713969]
[1760723800120,0.002,3826.7,3825.6,0.4452]
[1760723800349,2.61328594,3826.6,3825.9,2.61376206]
[1760723800549,0.32491077,3826.6,3825.6,0.001]
[1760723800753,0.002,3826.7,3826.6,2.61328594]
[1760723801753,2.61292863,3827.2,3826.5,0.1171]
[1760723802051,2.61293301,3827.2,3826.5,2.61331975]
[1760723802253,2.61289232,3827.2,3826.5,2.61335424]
[1760723802452,0.04555264,3827.6,3826.1,0.1171]
[1760723802762,2.61267715,3827.5,3826.5,2.61329409]
[1760723802934,0.75346614,3827.6,3826.1,0.1171]
[1760723802935,2.61275352,3827.4,3826.1,0.1171]
[1760723803125,2.61281334,3827.3,3826.6,2.61321883]
[1760723803431,0.48765264,3827.6,3826.6,2.61327936]
[1760723803637,0.48765264,3827.6,3826.5,2.61330855]
[1760723803638,2.61290124,3827.2,3826.5,2.61330855]
[1760723803854,2.61290124,3827.2,3826.5,3.13598666]
[1760723804057,2.61300205,3827.1,3826.2,2.61355196]